bitfinex-derivatives/quotes_SOLF0:USTF0_20250514
["timestamp","ask_amount","ask_price","bid_price","bid_amount"]
[1747239353973,59.26,177.46,177.42,5.6352]
[1747239354175,59.26,177.46,177.43,5.6351]
[1747239355975,59.26,177.46,177.44,5.6347]
[1747239356277,59.26,177.46,177.39,59.26]
[1747239356469,3.6741,177.47,177.45,5.6343]
[1747239356673,59.24,177.46,177.39,59.26]
[1747239356873,59.24,177.46,177.39,69.22475874]
[1747239357076,59.24,177.46,177.45,5.6345]
[1747239357879,59.26,177.49,177.39,69.22475874]
[1747239358083,64.7257,177.53,177.42,9.96475874]
[1747239358276,59.24,177.52,177.43,59.26]
[1747239358576,59.24,177.52,177.49,5.6329]
[1747239360083,59.24,177.52,177.43,59.26]
[1747239360480,64.8724,177.52,177.48,5.6333]
[1747239360878,62.8298,177.53,177.43,59.26]
[1747239361081,1.7895,177.57,177.43,59.26]
[1747239361082,59.24,177.52,177.43,59.26]
[1747239361281,59.24,177.52,177.44,1.828]
[1747239361581,59.24,177.52,177.5,5.6327]
[1747239361882,59.24,177.51,177.5,5.6327]
[1747239362079,5.6314,177.55,177.47,59.22]
[1747239362282,59.22,177.57,177.47,59.22]
[1747239362583,59.22,177.57,177.55,5.6313]
[1747239362779,9.3027,177.59,177.48,9.96475874]
[1747239362780,59.24,177.56,177.51,59.22]
[1747239362978,59.24,177.57,177.51,69.18475874]
[1747239363286,59.24,177.57,177.56,5.631]
[1747239363679,59.22,177.58,177.57,5.6304]
[1747239364082,59.22,177.58,177.51,69.18475874]
[1747239364381,59.22,177.58,177.55,5.6312]
[1747239364582,59.22,177.58,177.51,69.18475874]
[1747239365983,59.22,177.58,177.56,5.631]
[1747239366281,59.22,177.58,177.51,69.18475874]
[1747239366777,59.22,177.58,177.51,59.22]
[1747239367182,59.22,177.58,177.53,5.6319]
[1747239367183,5.6309,177.57,177.53,5.6319]
[1747239367383,5.6309,177.57,177.51,59.22]
[1747239367685,59.22,177.58,177.51,59.22]
[1747239367978,64.8506,177.58,177.51,59.22]
[1747239368173,59.22,177.58,177.51,59.22]
[1747239368378,59.22,177.58,177.55,5.6311]
[1747239368573,59.22,177.58,177.51,59.22]
[1747239370285,5.6308,177.57,177.52,5.632]
[1747239370887,59.22,177.58,177.52,5.632]
[1747239371077,59.22,177.58,177.51,64.8525]
[1747239371378,61.0139,177.58,177.51,5.6325]
[1747239371586,61.0139,177.58,177.47,59.2]
[1747239372176,70.97865874,177.58,177.47,59.2]
[1747239372481,9.96475874,177.55,177.48,5.6333]
[1747239372681,118.4,177.54,177.48,5.6333]
[1747239372882,118.4,177.54,177.47,59.2]
[1747239373479,59.2,177.53,177.47,59.2]
[1747239373680,59.2,177.53,177.52,5.6323]
[1747239374380,59.2,177.53,177.51,5.6325]
[1747239374982,59.2,177.53,177.47,59.2]
[1747239377184,59.2,177.53,177.51,5.6324]
[1747239377986,59.2,177.53,177.5,5.6328]
[1747239378179,59.2,177.53,177.47,59.2]
[1747239379387,59.2,177.53,177.5,5.6327]
[1747239379587,59.2,177.53,177.47,59.2]
[1747239380387,118.4,177.53,177.43,59.2]
[1747239380787,9.96475874,177.51,177.43,59.2]
[1747239381087,5.4882,177.5,177.39,59.2]
[1747239381290,9.96475874,177.45,177.34,61.0302]
[1747239381590,118.4,177.44,177.34,59.2]
[1747239381988,5.6359,177.41,177.36,5.6371]
[1747239382190,59.2,177.4,177.36,5.6371]
[1747239382385,59.2,177.4,177.34,59.2]
[1747239385498,59.2,177.4,177.37,5.6368]
[1747239385800,59.2,177.4,177.34,59.2]
[1747239385997,59.2,177.4,177.39,5.6364]
[1747239386295,3.8002,177.51,177.34,59.2]
[1747239386496,59.2,177.5,177.38,59.22]
[1747239386800,59.2,177.5,177.39,59.22]
[1747239387096,59.2,177.5,177.44,5.6346]
[1747239387497,69.16475874,177.5,177.39,59.22]
[1747239387688,5.6342,177.46,177.38,59.22]
[1747239387891,59.22,177.45,177.38,59.22]
[1747239388092,64.8545,177.45,177.4,5.6358]
[1747239388403,59.22,177.45,177.4,5.6358]
[1747239389096,59.22,177.45,177.38,59.22]
[1747239389598,118.44,177.45,177.34,59.22]
[1747239389800,3.7913,177.44,177.34,59.22]
[1747239390094,9.4264,177.44,177.34,59.22]
[1747239390401,9.4264,177.44,177.39,5.6361]
[1747239390707,5.6352,177.43,177.34,59.22]
[1747239390897,5.6352,177.43,177.38,5.6364]
[1747239391505,5.6355,177.42,177.38,5.6364]
[1747239391703,59.22,177.41,177.38,5.6364]
[1747239392099,59.22,177.41,177.37,5.637]
[1747239392303,118.42,177.41,177.37,5.637]
[1747239392501,118.42,177.41,177.31,61.0959]
[1747239393204,118.42,177.41,177.33,9.96475874]
[1747239393504,118.42,177.41,177.4,5.6361]
[1747239395104,1.8225,177.43,177.41,5.6357]
[1747239395309,59.22,177.42,177.41,5.6357]
[1747239395708,59.22,177.42,177.32,9.96475874]
[1747239396709,64.8555,177.42,177.38,5.6365]
[1747239400614,59.22,177.42,177.38,5.6365]
[1747239400908,59.22,177.42,177.31,61.0959]
[1747239401302,5.6358,177.41,177.31,61.0959]
[1747239401500,59.22,177.4,177.31,61.0959]
[1747239401702,1.8225,177.43,177.32,9.96475874]
[1747239401901,63.0113,177.44,177.35,9.96475874]
[1747239402104,59.38,177.43,177.35,69.18475874]
[1747239402506,59.38,177.43,177.41,5.6355]
[1747239402712,63.0113,177.44,177.41,5.6355]
[1747239402910,59.44,177.43,177.41,5.6355]
[1747239403115,59.44,177.43,177.42,5.6354]
[1747239403304,61.1327,177.48,177.38,9.96475874]
[1747239403614,59.42,177.45,177.44,5.6348]
[1747239404610,59.42,177.45,177.39,74.78695874]
[1747239404817,59.42,177.45,177.39,64.8222]
[1747239405011,59.42,177.45,177.39,61.1182]
[1747239405213,5.6344,177.46,177.42,5.6353]
[1747239405412,59.7,177.45,177.42,5.6353]
[1747239406017,59.7,177.45,177.39,59.22]
[1747239406216,11.86315874,177.53,177.39,69.18475874]
[1747239406413,5.6331,177.5,177.46,5.6339]
[1747239406716,118.88,177.51,177.39,69.18475874]
[1747239407018,5.6329,177.5,177.39,69.18475874]
[1747239407514,5.6329,177.5,177.47,5.6338]
[1747239408218,118.88,177.51,177.47,5.6338]
[1747239408619,118.88,177.51,177.46,5.6341]
[1747239408821,118.88,177.51,177.39,69.18475874]
[1747239409012,118.88,177.51,177.45,5.6344]
[1747239409318,5.6332,177.5,177.39,9.96475874]
[1747239409523,5.6332,177.5,177.39,59.2]
[1747239409715,118.88,177.51,177.39,59.2]
[1747239409913,9.96475874,177.47,177.35,490.6612]
[1747239410115,59.58,177.46,177.35,549.8612]
[1747239410419,59.58,177.46,177.35,559.82595874]
[1747239411318,59.58,177.46,177.35,62.7612]
[1747239411524,9.96475874,177.44,177.31,59.2]
[1747239411821,59.2,177.43,177.38,5.6365]
[1747239412014,59.2,177.43,177.31,59.2]
[1747239412015,59.66,177.42,177.31,59.2]
[1747239412925,9.96475874,177.41,177.31,59.2]
[1747239413122,9.96475874,177.38,177.26,487.06]
[1747239413323,119.36,177.37,177.28,59.2]
[1747239414325,123.1028,177.37,177.28,59.2]
[1747239414528,9.96475874,177.35,177.28,59.2]
[1747239414823,9.96475874,177.35,177.24,5.5895]
[1747239415025,1.9371,177.34,177.23,59.22]
[1747239415226,59.22,177.33,177.22,59.22]
[1747239415425,60.52,177.32,177.22,59.22]
[1747239416230,66.1589,177.32,177.27,5.6401]
[1747239416730,60.52,177.32,177.27,5.6401]
[1747239416930,70.48475874,177.32,177.19,15.40955874]
[1747239417132,70.48475874,177.32,177.2,59.22]
[1747239417524,5.64,177.28,177.23,5.6412]
[1747239417720,60.82,177.27,177.2,59.22]
[1747239417928,60.82,177.26,177.19,5.4448]
[1747239418520,60.82,177.26,177.22,5.6418]
[1747239418931,60.82,177.26,177.19,5.4448]
[1747239419530,60.82,177.26,177.22,5.6416]
[1747239419832,60.82,177.25,177.19,5.4448]
[1747239420130,60.82,177.25,177.23,5.6412]
[1747239420331,60.82,177.25,177.19,5.4448]
[1747239421435,60.82,177.25,177.22,5.6415]
[1747239421628,60.82,177.25,177.19,5.4448]
[1747239421829,60.82,177.25,177.23,5.6414]
[1747239422133,60.82,177.25,177.19,5.4448]
[1747239422533,60.82,177.25,177.23,5.6415]
[1747239422835,60.82,177.25,177.19,5.4448]
[1747239423036,60.82,177.25,177.21,5.6418]
[1747239423230,60.82,177.25,177.19,5.4448]
[1747239423735,60.82,177.25,177.22,5.6416]
[1747239424434,60.82,177.25,177.18,59.22]
[1747239424936,60.82,177.25,177.22,5.6416]
[1747239425638,60.82,177.25,177.18,59.22]
[1747239426135,59.22,177.29,177.18,59.22]
[1747239426337,61.4,177.28,177.18,59.22]
[1747239426533,61.4,177.28,177.18,120.62]
[1747239426925,15.99120389,177.39,177.2,15.99120389]
[1747239427128,61.44,177.31,177.2,15.99120389]
[1747239427527,61.44,177.31,177.3,5.6393]
[1747239428342,507.45120389,177.48,177.26,60.86]
[1747239428539,61.46,177.41,177.28,15.99120389]
[1747239428836,61.46,177.41,177.4,5.6361]
[1747239429036,61.46,177.41,177.35,60.84]
[1747239429236,61.46,177.41,177.28,503.45120389]
[1747239429433,61.46,177.41,177.28,487.46]
[1747239429735,61.46,177.41,177.29,60.84]
[1747239429936,61.46,177.41,177.28,487.46]
[1747239430141,61.46,177.41,177.29,60.84]
[1747239430530,5.6376,177.36,177.32,5.6386]
[1747239430729,61.56,177.35,177.32,5.6386]
[1747239430931,61.56,177.35,177.33,5.6382]
[1747239431343,61.56,177.35,177.28,487.46]
[1747239432337,67.1978,177.35,177.28,487.46]
[1747239432540,61.56,177.35,177.28,487.46]
[1747239432840,5.6382,177.34,177.29,5.6393]
[1747239433141,61.56,177.35,177.24,60.84]
[1747239433335,5.6386,177.32,177.27,5.6399]
[1747239433536,61.56,177.35,177.23,60.84]
[1747239433737,15.99120389,177.33,177.19,487.42]
[1747239434044,60.84,177.32,177.2,60.84]
[1747239434639,5.64,177.28,177.23,5.6415]
[1747239434840,61.86,177.27,177.23,5.6415]
[1747239435039,61.84,177.26,177.23,5.6415]
[1747239435341,61.84,177.25,177.23,5.6415]
[1747239437141,61.84,177.25,177.19,487.42]
[1747239437334,61.84,177.25,177.18,60.84]
[1747239437534,61.84,177.25,177.14,60.86]
[1747239438446,77.83120389,177.25,177.1,553.895]
[1747239439033,15.99120389,177.21,177.1,548.36]
[1747239439238,122.56,177.2,177.1,60.86]
[1747239440039,15.99120389,177.17,177.07,5.6463]
[1747239440238,5.474,177.16,177.06,60.86]
[1747239440434,122.56,177.15,177.06,60.86]
[1747239440648,5.6452,177.12,177.06,66.5068]
[1747239440940,122.56,177.15,177.06,66.5068]
[1747239441143,5.6453,177.11,177.06,5.6469]
[1747239441344,61.68,177.1,177.06,5.6469]
[1747239441542,61.68,177.1,177.03,60.86]
[1747239442237,61.68,177.1,176.98,3.7407]
[1747239442238,5.6463,177.08,176.98,3.7407]
[1747239442442,122.54,177.1,176.99,60.86]
[1747239443346,5.6471,177.06,177.0,5.6486]
[1747239443545,61.74,177.05,176.99,60.86]
[1747239443734,61.74,177.04,176.99,60.86]
[1747239443939,61.74,177.04,177.02,5.6479]
[1747239444444,61.74,177.04,176.99,60.86]
[1747239445142,61.74,177.04,177.03,5.6479]
[1747239446144,61.74,177.04,176.99,60.86]
[1747239446642,61.74,177.04,176.98,3.7407]
[1747239446840,61.74,177.04,176.98,64.6407]
[1747239448144,5.6479,177.03,176.98,64.6407]
[1747239448641,67.3876,177.04,176.98,64.6407]
[1747239448843,61.74,177.04,176.98,64.6407]
[1747239449347,61.74,177.04,177.03,5.6479]
[1747239450847,60.86,177.1,177.03,60.92]
[1747239451043,122.52,177.1,177.04,1.8627]
[1747239451345,66.5645,177.14,177.09,5.6457]
[1747239451544,61.66,177.13,177.04,1.8627]
[1747239451747,67.2632,177.18,177.04,63.5027]
[1747239451947,61.7,177.17,177.04,79.49390389]
[1747239452940,61.7,177.17,177.05,61.62]
[1747239453545,5.6442,177.15,177.12,5.645]
[1747239453747,61.7,177.17,177.06,1.7915]
[1747239454145,5.6443,177.15,177.06,1.7915]
[1747239454541,61.7,177.17,177.06,1.7915]
[1747239455048,61.7,177.17,177.06,63.4115]
[1747239455245,77.69120389,177.17,177.06,61.62]
[1747239455445,77.69120389,177.17,177.04,63.4827]
[1747239455646,77.69120389,177.17,177.03,487.94]
[1747239455947,1.03778854,177.16,177.03,487.94]
[1747239456141,15.99120389,177.13,177.02,61.62]
[1747239456345,127.1895,177.12,177.02,61.62]
[1747239456547,5.6462,177.09,177.04,5.6473]
[1747239457041,132.8348,177.12,177.02,61.62]
[1747239457247,61.86,177.12,177.02,61.62]
[1747239457748,61.86,177.12,177.11,5.6453]
[1747239458150,61.62,177.16,177.13,5.6444]
[1747239458349,61.86,177.15,177.09,61.62]
[1747239458552,61.62,177.2,177.09,61.62]
[1747239458744,61.92,177.19,177.1,1.9452]
[1747239460446,61.92,177.19,177.18,5.6431]
[1747239460649,61.92,177.19,177.14,61.62]
[1747239461354,61.92,177.19,177.17,5.6434]
[1747239461545,61.92,177.19,177.12,61.62]
[1747239462343,1.8651,177.23,177.12,61.62]
[1747239462649,61.92,177.22,177.12,61.62]
[1747239462948,5.642,177.22,177.12,61.62]
[1747239463142,61.88,177.21,177.12,61.62]
[1747239463345,67.5223,177.21,177.17,5.6431]
[1747239463541,61.88,177.21,177.12,61.62]
[1747239463952,5.643,177.19,177.12,61.62]
[1747239464248,61.88,177.21,177.1,1.9452]
[1747239464443,5.6438,177.16,177.12,5.645]
[1747239464642,67.6238,177.16,177.1,61.62]
[1747239464841,61.98,177.16,177.1,61.62]
[1747239465249,5.6441,177.15,177.1,61.62]
[1747239465550,61.98,177.16,177.1,61.62]
[1747239466852,61.98,177.16,177.13,5.6444]
[1747239467045,61.98,177.16,177.1,61.62]
[1747239467750,61.98,177.16,177.15,5.644]
[1747239468351,61.98,177.16,177.1,61.62]
[1747239469149,61.98,177.16,177.07,3.7112]
[1747239469348,61.98,177.16,177.08,61.62]
[1747239469550,5.6444,177.14,177.1,5.6454]
[1747239470553,5.645,177.12,177.08,67.2662]
[1747239470757,5.645,177.12,177.03,61.62]
[1747239470758,61.92,177.11,177.03,61.62]
[1747239471151,61.92,177.11,177.07,5.6464]
[1747239471454,61.92,177.11,177.03,61.62]
[1747239471757,61.92,177.11,177.07,5.6464]
[1747239472253,61.92,177.11,177.03,61.62]
[1747239473257,61.92,177.11,177.07,5.6463]
[1747239473550,64.98,177.15,177.03,77.61120389]
[1747239473752,64.98,177.15,177.14,5.6444]
[1747239473949,70.8428,177.19,177.11,64.96]
[1747239474458,5.6432,177.18,177.13,5.6444]
[1747239474754,65.2,177.19,177.11,64.96]
[1747239475154,5.6431,177.18,177.14,5.6443]
[1747239475357,65.2,177.19,177.11,64.96]
[1747239475856,70.843,177.19,177.14,5.6441]
[1747239476058,65.2,177.19,177.11,64.96]
[1747239476361,65.2,177.19,177.03,15.99120389]
[1747239476553,5.6438,177.16,177.11,5.645]
[1747239476759,64.96,177.18,177.04,130.04]
[1747239477154,5.6435,177.17,177.13,5.6446]
[1747239477357,64.96,177.18,177.13,5.6446]
[1747239477957,70.6033,177.18,177.13,5.6446]
[1747239478159,64.96,177.18,177.13,5.6446]
[1747239478353,3.6642,177.2,177.09,64.96]
[1747239478553,64.94,177.19,177.1,5.4325]
[1747239478953,64.94,177.21,177.1,5.4325]
[1747239480556,64.94,177.21,177.2,5.6424]
[1747239480865,64.86,177.25,177.17,64.96]
[1747239481161,64.86,177.25,177.18,64.96]
[1747239481359,1.8723,177.29,177.18,64.96]
[1747239481552,64.8,177.28,177.18,64.96]
[1747239482159,64.76,177.27,177.18,64.96]
[1747239482655,64.76,177.27,177.19,5.5684]
[1747239483060,70.4005,177.27,177.19,5.5684]
[1747239483360,64.76,177.27,177.19,5.5684]
[1747239483564,5.6411,177.25,177.21,5.6419]
[1747239483869,64.76,177.27,177.19,5.5684]
[1747239484161,64.96,177.3,177.28,5.6399]
[1747239484458,64.58,177.29,177.23,64.96]
[1747239484654,5.6402,177.27,177.23,64.96]
[1747239484849,64.58,177.29,177.23,64.96]
[1747239485258,70.2196,177.29,177.23,64.96]
[1747239485462,64.58,177.29,177.23,64.96]
[1747239486063,64.58,177.29,177.19,5.5684]
[1747239486256,131.3659,177.29,177.19,64.94]
[1747239486456,1.9341,177.28,177.19,64.94]
[1747239486757,5.6411,177.25,177.21,5.6421]
[1747239486964,64.46,177.24,177.21,5.6421]
[1747239487155,64.46,177.24,177.12,5.4727]
[1747239487358,64.46,177.24,177.13,129.34]
[1747239487960,64.46,177.24,177.23,5.6415]
[1747239488962,64.46,177.24,177.22,5.6418]
[1747239489164,64.46,177.24,177.2,64.94]
[1747239489364,64.46,177.24,177.19,64.94]
[1747239489565,64.46,177.24,177.23,5.6415]
[1747239489866,64.46,177.24,177.19,64.94]
[1747239490064,64.46,177.24,177.19,5.6425]
[1747239490260,64.46,177.24,177.15,64.94]
[1747239490261,64.46,177.24,177.12,5.4727]
[1747239490466,1.7776,177.23,177.14,64.94]
[1747239490668,5.6423,177.21,177.17,5.6432]
[1747239490858,1.7776,177.23,177.14,64.94]
[1747239491057,5.6427,177.2,177.16,5.6436]
[1747239491373,64.26,177.19,177.14,64.94]
[1747239492669,69.9029,177.19,177.14,5.6441]
[1747239492869,69.9029,177.19,177.1,64.94]
[1747239493072,64.26,177.19,177.1,64.94]
[1747239493867,64.26,177.19,177.18,5.6431]
[1747239494967,64.26,177.19,177.16,5.6437]
[1747239495169,64.26,177.19,177.08,3.6918]
[1747239495369,64.26,177.19,177.09,128.96]
[1747239495670,64.26,177.19,177.18,5.6431]
[1747239495871,64.26,177.19,177.14,64.94]
[1747239496269,64.26,177.19,177.17,5.6432]
[1747239496472,64.26,177.19,177.14,64.94]
[1747239496868,5.6434,177.18,177.14,70.584]
[1747239497067,64.26,177.19,177.1,64.94]
[1747239497467,5.6432,177.18,177.14,5.6442]
[1747239497672,64.26,177.19,177.07,489.7249]
[1747239497867,15.99120389,177.18,177.08,64.94]
[1747239498067,17.76910389,177.18,177.08,64.94]
[1747239498670,5.644,177.15,177.08,64.94]
[1747239498877,63.94,177.14,177.08,64.94]
[1747239499171,5.6447,177.13,177.09,5.6457]
[1747239499364,63.94,177.14,177.08,64.94]
[1747239499566,5.6457,177.1,177.06,5.6467]
[1747239499761,63.98,177.09,177.03,64.94]
[1747239501376,63.98,177.09,177.05,5.6471]
[1747239501567,63.98,177.09,176.99,64.96]
[1747239501778,65.8827,177.09,176.99,64.96]
[1747239501976,5.6466,177.07,177.03,5.6479]
[1747239502367,5.6469,177.06,177.02,5.6479]
[1747239502564,130.8427,177.09,176.99,64.96]
[1747239502769,1.8353,177.05,176.95,66.8831]
[1747239502970,64.34,177.04,176.95,66.8831]
[1747239504073,64.34,177.04,177.01,5.6483]
[1747239504870,64.34,177.04,177.03,5.6479]
[1747239505270,64.32,177.05,176.95,66.8831]
[1747239506370,1.9027,177.09,177.06,5.6468]
[1747239506577,64.24,177.08,177.0,64.3]
[1747239506771,64.3,177.1,177.0,64.3]
[1747239507071,64.22,177.09,177.0,64.3]
[1747239507275,5.6466,177.07,177.0,64.3]
[1747239507770,5.6466,177.07,177.03,5.6477]
[1747239508275,5.6464,177.08,177.0,64.3]
[1747239508677,64.22,177.09,177.0,64.3]
[1747239509070,1.7996,177.08,177.0,64.3]
[1747239509375,5.6474,177.05,177.0,69.9486]
[1747239509574,64.06,177.04,177.0,69.9486]
[1747239510178,64.06,177.04,176.96,64.32]
[1747239512175,1.7996,177.08,177.04,5.6473]
[1747239512373,64.0,177.07,176.96,64.32]
[1747239512676,64.0,177.07,177.05,5.647]
[1747239513374,64.0,177.07,177.01,64.32]
[1747239514075,64.0,177.07,177.05,5.6472]
[1747239514476,64.0,177.07,176.98,64.32]
[1747239514976,5.647,177.06,176.98,64.32]
[1747239515478,64.0,177.07,176.98,64.32]
[1747239515679,64.0,177.07,177.05,5.647]
[1747239516179,64.0,177.07,176.98,64.32]
[1747239517284,5.6472,177.06,176.98,64.32]
[1747239517478,64.0,177.07,176.98,64.32]
[1747239517675,64.0,177.07,177.04,5.6475]
[1747239517881,64.0,177.07,176.98,64.32]
[1747239518182,64.0,177.07,176.99,1.904]
[1747239518389,64.0,177.07,177.06,5.6469]
[1747239518781,5.6452,177.12,177.08,5.646]
[1747239519084,63.84,177.11,177.03,64.32]
[1747239519377,63.82,177.11,177.03,64.32]
[1747239519682,63.82,177.11,177.04,1.826]
[1747239519882,69.4653,177.11,177.04,1.826]
[1747239520086,63.82,177.11,177.02,64.32]
[1747239520585,69.4653,177.11,177.08,5.646]
[1747239520785,63.82,177.11,177.02,64.32]
[1747239521084,63.74,177.12,177.02,64.32]
[1747239521285,63.74,177.12,177.02,128.04]
[1747239521987,63.74,177.12,177.0,3.7595]
[1747239522182,63.74,177.12,177.01,64.32]
[1747239522982,3.8244,177.11,177.01,64.32]
[1747239523187,5.647,177.06,177.03,5.6478]
[1747239523388,69.307,177.06,177.03,5.6478]
[1747239523685,69.307,177.06,177.02,5.6481]
[1747239524989,63.66,177.06,177.03,5.6478]
[1747239525383,63.66,177.06,177.01,64.32]
[1747239525585,63.66,177.06,177.05,5.6472]
[1747239526195,63.66,177.06,177.03,5.6476]
[1747239526488,63.66,177.06,177.01,64.32]
[1747239527886,3.8244,177.11,177.08,5.6461]
[1747239528192,63.64,177.1,177.01,64.32]
[1747239528489,5.6463,177.08,177.05,5.6471]
[1747239528680,63.64,177.1,177.01,64.32]
[1747239529087,69.2857,177.1,177.06,5.6467]
[1747239530297,5.6457,177.1,177.06,5.6467]
[1747239530490,63.58,177.09,177.07,5.6466]
[1747239530686,63.58,177.09,177.01,64.32]
[1747239530890,63.58,177.09,177.01,64.29772406]
[1747239531095,64.32,177.12,177.02,3.8126]
[1747239531296,63.54,177.11,177.02,3.8126]
[1747239531496,63.54,177.11,177.03,1.753]
[1747239533295,63.54,177.11,177.09,5.6459]
[1747239533498,63.54,177.11,177.03,1.753]
[1747239534092,63.54,177.11,177.07,5.6464]
[1747239534093,5.6459,177.1,177.07,5.6464]
[1747239534498,63.54,177.11,177.03,1.753]
[1747239535398,63.54,177.11,177.1,5.6456]
[1747239535595,63.54,177.11,177.06,63.38]
[1747239536799,63.54,177.11,177.1,5.6456]
[1747239537699,63.54,177.11,177.06,63.38]
[1747239538100,63.54,177.11,177.1,5.6456]
[1747239538303,64.32,177.16,177.06,63.38]
[1747239538798,63.22,177.15,177.14,5.6441]
[1747239539103,63.22,177.15,177.06,63.38]
[1747239540105,68.8642,177.15,177.12,5.645]
[1747239540400,63.22,177.15,177.03,1.753]
[1747239540598,5.6455,177.11,177.08,5.6461]
[1747239540794,63.2,177.1,177.03,65.133]
[1747239541198,63.2,177.1,177.09,5.6459]
[1747239542395,3.7322,177.14,177.09,5.6459]
[1747239542702,63.2,177.14,177.08,63.38]
[1747239543403,63.2,177.14,177.13,5.6447]
[1747239543608,1.9445,177.2,177.08,63.38]
[1747239543802,5.6435,177.17,177.14,5.6441]
[1747239544008,63.16,177.19,177.08,63.38]
[1747239545407,5.6435,177.17,177.14,5.6442]
[1747239545609,63.16,177.19,177.08,63.38]
[1747239546010,5.6435,177.17,177.08,63.38]
[1747239546303,63.16,177.19,177.08,63.38]
[1747239546507,63.16,177.19,177.09,3.7811]
[1747239547109,5.6433,177.18,177.15,5.6439]
[1747239547808,5.6434,177.17,177.15,5.6439]
[1747239548012,63.16,177.19,177.09,3.7811]
[1747239548410,68.8029,177.19,177.16,5.6436]
[1747239548611,63.16,177.19,177.09,3.7811]
[1747239549707,15.99120389,177.26,177.09,3.7811]
[1747239549904,63.14,177.25,177.1,65.1402]
[1747239550207,63.22,177.25,177.23,5.6412]
[1747239550611,63.22,177.25,177.18,63.38]
[1747239551112,63.2,177.24,177.22,5.6416]
[1747239551507,63.2,177.24,177.18,63.38]
[1747239551810,63.2,177.24,177.2,5.6422]
[1747239552312,68.8412,177.24,177.18,63.38]
[1747239552513,63.2,177.24,177.18,63.38]
[1747239552908,68.8414,177.24,177.2,5.6422]
[1747239553113,63.2,177.24,177.18,63.38]
[1747239553617,68.8412,177.24,177.18,63.38]
[1747239553914,63.14,177.23,177.18,63.38]
[1747239554110,63.14,177.23,177.22,5.6418]
[1747239554308,63.14,177.23,177.18,63.38]
[1747239554707,68.7817,177.23,177.19,5.6425]
[1747239555014,5.5886,177.26,177.18,63.38]
[1747239555306,63.42,177.25,177.18,63.38]
[1747239555914,5.6412,177.24,177.21,5.6421]
[1747239556214,63.42,177.25,177.18,63.38]
[1747239556609,69.061,177.25,177.21,5.6419]
[1747239558013,63.42,177.25,177.18,63.38]
[1747239558412,5.6423,177.21,177.17,5.6431]
[1747239558613,63.28,177.2,177.14,63.36]